fUSD/lending_fUSD_20260621
["ID","MTS","AMOUNT","RATE_DAILY","PERIOD"]
[425877243,1782013883000,-866.94,0.00030684,2]
[425877242,1782013883000,-500.0,0.00030684,2]
[425877247,1782013883000,-657.07,0.00030684,2]
[425877258,1782013883000,-500.0,0.00030684,2]
[425877257,1782013883000,-500.0,0.00030684,2]
[425877246,1782013883000,-880.44,0.00030684,2]
[425877248,1782013883000,-1000.0,0.00030684,2]
[425877236,1782013883000,-344.68274792,0.00030684,2]
[425877249,1782013883000,-714.77,0.00030684,2]
[425877264,1782013883000,-500.0,0.00030684,2]
[425877267,1782013883000,-500.0,0.00030684,2]
[425877268,1782013883000,-500.0,0.00030684,2]
[425877265,1782013883000,-500.0,0.00030684,2]
[425877250,1782013883000,-500.0,0.00030684,2]
[425877261,1782013883000,-500.0,0.00030684,2]
[425877262,1782013883000,-500.0,0.00030684,2]
[425877253,1782013883000,-500.0,0.00030684,2]
[425877256,1782013883000,-500.0,0.00030684,2]
[425877252,1782013883000,-500.0,0.00030684,2]
[425877254,1782013883000,-500.0,0.00030684,2]
[425877255,1782013883000,-500.0,0.00030684,2]
[425877251,1782013883000,-187.84284486,0.00030684,2]
[425877259,1782013883000,-500.0,0.00030684,2]
[425877348,1782013884000,-588.9,0.00030684,2]
[425877349,1782013884000,-500.0,0.00030684,2]
[425877344,1782013884000,-500.0,0.00030684,2]
[425877340,1782013884000,-511.44137,0.00030684,2]
[425877338,1782013884000,-1163.27,0.00030684,2]
[425877334,1782013884000,-500.0,0.00030684,2]
[425877337,1782013884000,-500.0,0.00030684,2]
[425877331,1782013884000,-500.0,0.00030684,2]
[425877335,1782013884000,-500.0,0.00030684,2]
[425877333,1782013884000,-500.0,0.00030684,2]
[425877332,1782013884000,-500.0,0.00030684,2]
[425877339,1782013884000,-500.0,0.00030684,2]
[425877341,1782013884000,-517.54,0.00030684,2]
[425877351,1782013884000,-500.0,0.00030684,2]
[425877342,1782013884000,-654.53,0.00030684,2]
[425877345,1782013884000,-800.33,0.00030684,2]
[425877347,1782013884000,-500.0,0.00030684,2]
[425877346,1782013884000,-866.71,0.00030684,2]
[425877361,1782013884000,-500.0,0.00030684,2]
[425877362,1782013884000,-500.0,0.00030684,2]
[425877353,1782013884000,-500.0,0.00030684,2]
[425877350,1782013884000,-500.0,0.00030684,2]
[425877352,1782013884000,-1323.65,0.00030684,2]
[425877354,1782013884000,-645.18,0.00030684,2]
[425877356,1782013884000,-574.26,0.00030684,2]
[425877355,1782013884000,-500.0,0.00030684,2]
[425877330,1782013884000,-673.6,0.00030684,2]
[425877343,1782013884000,-581.24,0.00030684,2]
[425877328,1782013884000,-500.0,0.00030684,2]
[425877316,1782013884000,-500.0,0.00030684,2]
[425877325,1782013884000,-772.82,0.00030684,2]
[425877359,1782013884000,-569.94,0.00030684,2]
[425877310,1782013884000,-500.0,0.00030684,2]
[425877300,1782013884000,-500.0,0.00030684,2]
[425877311,1782013884000,-500.0,0.00030684,2]
[425877299,1782013884000,-500.0,0.00030684,2]
[425877304,1782013884000,-223.40872918,0.00030684,2]
[425877303,1782013884000,-826.81,0.00030684,2]
[425877302,1782013884000,-500.0,0.00030684,2]
[425877305,1782013884000,-500.0,0.00030684,2]
[425877301,1782013884000,-543.42,0.00030684,2]
[425877308,1782013884000,-500.0,0.00030684,2]
[425877306,1782013884000,-500.0,0.00030684,2]
[425877307,1782013884000,-500.0,0.00030684,2]
[425877309,1782013884000,-500.0,0.00030684,2]
[425877312,1782013884000,-565.36285126,0.00030684,2]
[425877324,1782013884000,-669.02,0.00030684,2]
[425877314,1782013884000,-500.0,0.00030684,2]
[425877320,1782013884000,-500.0,0.00030684,2]
[425877322,1782013884000,-500.0,0.00030684,2]
[425877323,1782013884000,-500.0,0.00030684,2]
[425877313,1782013884000,-1238.3,0.00030684,2]
[425877318,1782013884000,-500.0,0.00030684,2]
[425877315,1782013884000,-750.42,0.00030684,2]
[425877317,1782013884000,-735.04,0.00030684,2]
[425877319,1782013884000,-500.0,0.00030684,2]
[425877321,1782013884000,-726.96,0.00030684,2]
[425877336,1782013884000,-500.0,0.00030684,2]
[425877326,1782013884000,-524.64,0.00030684,2]
[425877327,1782013884000,-500.0,0.00030684,2]
[425877329,1782013884000,-578.2,0.00030684,2]
[425877357,1782013884000,-500.0,0.00030684,2]
[425877363,1782013884000,-605.37,0.00030684,2]
[425877360,1782013884000,-500.0,0.00030684,2]
[425877394,1782013884000,-161.00287,0.00030684,2]
[425877400,1782013884000,-500.0,0.00030684,2]
[425877398,1782013884000,-754.65,0.00030684,2]
[425877399,1782013884000,-500.0,0.00030684,2]
[425877397,1782013884000,-500.0,0.00030684,2]
[425877402,1782013884000,-842.61,0.00030684,2]
[425877401,1782013884000,-500.0,0.00030684,2]
[425877411,1782013884000,-514.07,0.00030684,2]
[425877410,1782013884000,-500.0,0.00030684,2]
[425877413,1782013884000,-527.56,0.00030684,2]
[425877412,1782013884000,-500.0,0.00030684,2]
[425877403,1782013884000,-500.0,0.00030684,2]
[425877404,1782013884000,-500.0,0.00030684,2]
[425877392,1782013884000,-500.0,0.00030684,2]
[425877407,1782013884000,-625.28,0.00030684,2]
[425877409,1782013884000,-500.0,0.00030684,2]
[425877406,1782013884000,-591.13,0.00030684,2]
[425877405,1782013884000,-500.0,0.00030684,2]
[425877414,1782013884000,-525.14810359,0.00030684,2]
[425877417,1782013884000,-500.0,0.00030684,2]
[425877421,1782013884000,-713.51,0.00030684,2]
[425877418,1782013884000,-500.0,0.00030684,2]
[425877422,1782013884000,-500.0,0.00030684,2]
[425877415,1782013884000,-500.0,0.00030684,2]
[425877420,1782013884000,-505.39,0.00030684,2]
[425877419,1782013884000,-500.0,0.00030684,2]
[425877416,1782013884000,-676.35,0.00030684,2]
[425877358,1782013884000,-575.92,0.00030684,2]
[425877408,1782013884000,-500.0,0.00030684,2]
[425877395,1782013884000,-500.0,0.00030684,2]
[425877423,1782013884000,-696.46,0.00030684,2]
[425877393,1782013884000,-500.0,0.00030684,2]
[425877396,1782013884000,-500.0,0.00030684,2]
[425877367,1782013884000,-646.19920826,0.00030684,2]
[425877373,1782013884000,-500.0,0.00030684,2]
[425877369,1782013884000,-522.743824,0.00030684,2]
[425877368,1782013884000,-500.0,0.00030684,2]
[425877366,1782013884000,-500.0,0.00030684,2]
[425877371,1782013884000,-558.93,0.00030684,2]
[425877370,1782013884000,-948.35,0.00030684,2]
[425877372,1782013884000,-500.0,0.00030684,2]
[425877364,1782013884000,-630.94,0.00030684,2]
[425877374,1782013884000,-541.89,0.00030684,2]
[425877375,1782013884000,-500.0,0.00030684,2]
[425877377,1782013884000,-500.0,0.00030684,2]
[425877376,1782013884000,-524.27,0.00030684,2]
[425877365,1782013884000,-298.53,0.00030684,2]
[425877379,1782013884000,-500.0,0.00030684,2]
[425877390,1782013884000,-500.0,0.00030684,2]
[425877391,1782013884000,-500.0,0.00030684,2]
[425877389,1782013884000,-500.0,0.00030684,2]
[425877382,1782013884000,-500.0,0.00030684,2]
[425877380,1782013884000,-500.0,0.00030684,2]
[425877381,1782013884000,-500.0,0.00030684,2]
[425877385,1782013884000,-500.0,0.00030684,2]
[425877386,1782013884000,-500.0,0.00030684,2]
[425877383,1782013884000,-500.0,0.00030684,2]
[425877378,1782013884000,-1261.56,0.00030684,2]
[425877387,1782013884000,-500.0,0.00030684,2]
[425877388,1782013884000,-520.75,0.00030684,2]
[425877384,1782013884000,-826.79,0.00030684,2]
[425877476,1782013885000,-500.0,0.00030684,2]
[425877464,1782013885000,-500.0,0.00030684,2]
[425877475,1782013885000,-500.0,0.00030684,2]
[425877474,1782013885000,-3730.98,0.00030684,2]
[425877454,1782013885000,-500.0,0.00030684,2]
[425877457,1782013885000,-1592.33,0.00030684,2]
[425877460,1782013885000,-500.0,0.00030684,2]
[425877461,1782013885000,-876.62,0.00030684,2]
[425877458,1782013885000,-558.96,0.00030684,2]
[425877456,1782013885000,-500.0,0.00030684,2]
[425877459,1782013885000,-500.0,0.00030684,2]
[425877465,1782013885000,-500.0,0.00030684,2]
[425877467,1782013885000,-1589.12,0.00030684,2]
[425877463,1782013885000,-1331.76,0.00030684,2]
[425877473,1782013885000,-625.17,0.00030684,2]
[425877470,1782013885000,-500.0,0.00030684,2]
[425877471,1782013885000,-500.0,0.00030684,2]
[425877468,1782013885000,-500.0,0.00030684,2]
[425877472,1782013885000,-1717.05,0.00030684,2]
[425877469,1782013885000,-500.0,0.00030684,2]
[425877479,1782013885000,-500.0,0.00030684,2]
[425877489,1782013885000,-500.0,0.00030684,2]
[425877477,1782013885000,-500.0,0.00030684,2]
[425877480,1782013885000,-500.0,0.00030684,2]
[425877481,1782013885000,-500.0,0.00030684,2]
[425877453,1782013885000,-500.0,0.00030684,2]
[425877466,1782013885000,-500.0,0.00030684,2]
[425877451,1782013885000,-500.0,0.00030684,2]
[425877441,1782013885000,-500.0,0.00030684,2]
[425877462,1782013885000,-731.92,0.00030684,2]
[425877425,1782013885000,-500.0,0.00030684,2]
[425877424,1782013885000,-500.0,0.00030684,2]
[425877428,1782013885000,-500.0,0.00030684,2]
[425877426,1782013885000,-500.0,0.00030684,2]
[425877427,1782013885000,-500.0,0.00030684,2]
[425877435,1782013885000,-500.0,0.00030684,2]
[425877429,1782013885000,-500.0,0.00030684,2]
[425877436,1782013885000,-543.54,0.00030684,2]
[425877437,1782013885000,-500.0,0.00030684,2]
[425877433,1782013885000,-839.91,0.00030684,2]
[425877432,1782013885000,-1012.47,0.00030684,2]
[425877430,1782013885000,-500.0,0.00030684,2]
[425877431,1782013885000,-500.0,0.00030684,2]
[425877434,1782013885000,-500.0,0.00030684,2]
[425877438,1782013885000,-470.65492345,0.00030684,2]
[425877442,1782013885000,-500.0,0.00030684,2]
[425877444,1782013885000,-500.0,0.00030684,2]
[425877439,1782013885000,-500.0,0.00030684,2]
[425877440,1782013885000,-500.0,0.00030684,2]
[425877450,1782013885000,-500.0,0.00030684,2]
[425877443,1782013885000,-500.0,0.00030684,2]
[425877449,1782013885000,-500.0,0.00030684,2]
[425877448,1782013885000,-524.51764816,0.00030684,2]
[425877445,1782013885000,-500.0,0.00030684,2]
[425877447,1782013885000,-500.0,0.00030684,2]
[425877446,1782013885000,-500.0,0.00030684,2]
[425877452,1782013885000,-1298.43,0.00030684,2]
[425877455,1782013885000,-896.6,0.00030684,2]
[425877488,1782013885000,-500.0,0.00030684,2]
[425877478,1782013885000,-500.0,0.00030684,2]
[425877484,1782013885000,-662.46,0.00030684,2]
[425877519,1782013885000,-2357.13,0.00030684,2]
[425877518,1782013885000,-500.0,0.00030684,2]
[425877516,1782013885000,-500.0,0.00030684,2]
[425877525,1782013885000,-16323.99,0.00030684,2]
[425877522,1782013885000,-500.0,0.00030684,2]
[425877524,1782013885000,-500.0,0.00030684,2]
[425877521,1782013885000,-538.74,0.00030684,2]
[425877520,1782013885000,-500.0,0.00030684,2]
[425877527,1782013885000,-500.0,0.00030684,2]
[425877536,1782013885000,-661.2,0.00030684,2]
[425877535,1782013885000,-500.0,0.00030684,2]
[425877526,1782013885000,-34317.43824,0.00030684,2]
[425877528,1782013885000,-500.0,0.00030684,2]
[425877531,1782013885000,-608.91,0.00030684,2]
[425877532,1782013885000,-541.69278581,0.00030684,2]
[425877529,1782013885000,-500.0,0.00030684,2]
[425877533,1782013885000,-500.0,0.00030684,2]
[425877534,1782013885000,-500.0,0.00030684,2]
[425877530,1782013885000,-500.0,0.00030684,2]
[425877537,1782013885000,-219.610538,0.00030684,7]
[425877538,1782013885000,-500.0,0.00030684,2]
[425877540,1782013885000,-500.0,0.00030684,2]
[425877541,1782013885000,-500.0,0.00030684,2]
[425877544,1782013885000,-500.0,0.00030684,2]
[425877539,1782013885000,-500.0,0.00030684,2]
[425877542,1782013885000,-500.0,0.00030684,2]
[425877487,1782013885000,-500.0,0.00030684,2]
[425877523,1782013885000,-230.40431845,0.00030684,2]
[425877515,1782013885000,-500.0,0.00030684,2]
[425877543,1782013885000,-500.0,0.00030684,2]
[425877514,1782013885000,-500.0,0.00030684,2]
[425877517,1782013885000,-670.3,0.00030684,2]
[425877482,1782013885000,-584.72,0.00030684,2]
[425877483,1782013885000,-500.0,0.00030684,2]
[425877485,1782013885000,-500.0,0.00030684,2]
[425877490,1782013885000,-500.0,0.00030684,2]
[425877492,1782013885000,-500.0,0.00030684,2]
[425877498,1782013885000,-500.0,0.00030684,2]
[425877494,1782013885000,-500.0,0.00030684,2]
[425877497,1782013885000,-500.0,0.00030684,2]
[425877493,1782013885000,-500.0,0.00030684,2]
[425877495,1782013885000,-500.0,0.00030684,2]
[425877491,1782013885000,-1128.1,0.00030684,2]
[425877499,1782013885000,-792.46,0.00030684,2]
[425877500,1782013885000,-485.69372992,0.00030684,2]
[425877486,1782013885000,-695.39,0.00030684,2]
[425877501,1782013885000,-1018.86,0.00030684,2]
[425877496,1782013885000,-697.74,0.00030684,2]
[425877511,1782013885000,-500.0,0.00030684,2]
[425877510,1782013885000,-676.22,0.00030684,2]
[425877507,1782013885000,-500.0,0.00030684,2]
[425877508,1782013885000,-500.0,0.00030684,2]
[425877509,1782013885000,-524.71,0.00030684,2]
[425877504,1782013885000,-819.15,0.00030684,2]
[425877502,1782013885000,-500.0,0.00030684,2]
[425877506,1782013885000,-500.0,0.00030684,2]
[425877513,1782013885000,-502.26768903,0.00030684,2]
[425877512,1782013885000,-823.97,0.00030684,2]
[425877505,1782013885000,-589.05677392,0.00030684,2]
[425877503,1782013885000,-588.05,0.00030684,2]
[425877581,1782013886000,-500.0,0.00030684,2]
[425877573,1782013886000,-500.0,0.00030684,2]
[425877574,1782013886000,-534.32360118,0.00030684,2]
[425877578,1782013886000,-500.0,0.00030684,2]
[425877577,1782013886000,-1664.91,0.00030684,2]
[425877571,1782013886000,-500.0,0.00030684,2]
[425877576,1782013886000,-500.0,0.00030684,2]
[425877580,1782013886000,-2739.54,0.00030684,2]
[425877579,1782013886000,-500.0,0.00030684,2]
[425877592,1782013886000,-500.0,0.00030684,2]
[425877575,1782013886000,-516.44175945,0.00030684,2]
[425877588,1782013886000,-500.0,0.00030684,2]
[425877583,1782013886000,-679.81,0.00030684,2]
[425877584,1782013886000,-500.0,0.00030684,2]
[425877587,1782013886000,-500.0,0.00030684,2]
[425877586,1782013886000,-500.0,0.00030684,2]
[425877585,1782013886000,-636.57,0.00030684,2]
[425877590,1782013886000,-500.0,0.00030684,2]
[425877591,1782013886000,-1432.58,0.00030684,2]
[425877589,1782013886000,-500.0,0.00030684,2]
[425877572,1782013886000,-484.48113587,0.00030684,2]
[425877593,1782013886000,-500.0,0.00030684,2]
[425877582,1782013886000,-500.0,0.00030684,2]
[425877568,1782013886000,-500.0,0.00030684,2]
[425877552,1782013886000,-500.0,0.00030684,2]
[425877565,1782013886000,-500.0,0.00030684,2]
[425877595,1782013886000,-500.0,0.00030684,2]
[425877545,1782013886000,-504.95,0.00030684,2]
[425877546,1782013886000,-953.37,0.00030684,2]
[425877547,1782013886000,-219.610538,0.00030684,7]
[425877558,1782013886000,-323.18,0.00030684,2]
[425877557,1782013886000,-500.0,0.00030684,2]
[425877549,1782013886000,-500.0,0.00030684,2]
[425877550,1782013886000,-219.610538,0.00030684,7]
[425877548,1782013886000,-500.0,0.00030684,2]
[425877551,1782013886000,-219.610538,0.00030684,7]
[425877553,1782013886000,-500.0,0.00030684,2]
[425877556,1782013886000,-500.0,0.00030684,2]
[425877555,1782013886000,-500.0,0.00030684,2]
[425877554,1782013886000,-500.0,0.00030684,2]
[425877560,1782013886000,-500.0,0.00030684,2]
[425877559,1782013886000,-760.3,0.00030684,2]
[425877570,1782013886000,-500.0,0.00030684,2]
[425877561,1782013886000,-500.0,0.00030684,2]
[425877563,1782013886000,-584.79,0.00030684,2]
[425877564,1782013886000,-370.32886593,0.00030684,2]
[425877566,1782013886000,-500.0,0.00030684,2]
[425877567,1782013886000,-500.0,0.00030684,2]
[425877562,1782013886000,-527.18,0.00030684,2]
[425877569,1782013886000,-984.14,0.00030684,2]
[425877597,1782013886000,-500.0,0.00030684,2]
[425877600,1782013886000,-500.0,0.00030684,2]
[425877594,1782013886000,-500.0,0.00030684,2]
[425877628,1782013886000,-500.0,0.00030684,2]
[425877623,1782013886000,-901.37,0.00030684,2]
[425877624,1782013886000,-500.0,0.00030684,2]
[425877629,1782013886000,-6378.84,0.00030684,2]
[425877631,1782013886000,-500.0,0.00030684,2]
[425877630,1782013886000,-500.0,0.00030684,2]
[425877633,1782013886000,-521.99,0.00030684,2]
[425877632,1782013886000,-500.0,0.00030684,2]
[425877634,1782013886000,-500.0,0.00030684,2]
[425877640,1782013886000,-500.0,0.00030684,2]
[425877626,1782013886000,-500.0,0.00030684,2]
[425877637,1782013886000,-500.0,0.00030684,2]
[425877639,1782013886000,-500.0,0.00030684,2]
[425877635,1782013886000,-500.0,0.00030684,2]
[425877641,1782013886000,-500.0,0.00030684,2]
[425877644,1782013886000,-500.0,0.00030684,2]
[425877645,1782013886000,-500.0,0.00030684,2]
[425877642,1782013886000,-500.0,0.00030684,2]
[425877643,1782013886000,-4658.21,0.00030684,2]
[425877646,1782013886000,-500.0,0.00030684,2]
[425877647,1782013886000,-500.0,0.00030684,2]
[425877598,1782013886000,-500.0,0.00030684,2]
[425877636,1782013886000,-420.34,0.00030684,2]
[425877627,1782013886000,-618.23,0.00030684,2]
[425877638,1782013886000,-500.0,0.00030684,2]
[425877621,1782013886000,-500.0,0.00030684,2]
[425877602,1782013886000,-500.0,0.00030684,2]
[425877625,1782013886000,-1424.06,0.00030684,2]
[425877599,1782013886000,-926.0,0.00030684,2]
[425877604,1782013886000,-500.0,0.00030684,2]
[425877596,1782013886000,-500.0,0.00030684,2]
[425877603,1782013886000,-1056.74,0.00030684,2]
[425877605,1782013886000,-500.0,0.00030684,2]
[425877606,1782013886000,-869.82,0.00030684,2]
[425877619,1782013886000,-500.0,0.00030684,2]
[425877608,1782013886000,-743.14,0.00030684,2]
[425877618,1782013886000,-311.21192565,0.00030684,2]
[425877607,1782013886000,-500.0,0.00030684,2]
[425877601,1782013886000,-795.37,0.00030684,2]
[425877609,1782013886000,-500.0,0.00030684,2]
[425877622,1782013886000,-754.38,0.00030684,2]
[425877617,1782013886000,-500.0,0.00030684,2]
[425877615,1782013886000,-522.33,0.00030684,2]
[425877616,1782013886000,-569.73648541,0.00030684,2]
[425877614,1782013886000,-607.83,0.00030684,2]
[425877620,1782013886000,-500.0,0.00030684,2]
[425877612,1782013886000,-583.69,0.00030684,2]
[425877610,1782013886000,-500.0,0.00030684,2]
[425877613,1782013886000,-500.0,0.00030684,2]
[425877611,1782013886000,-500.0,0.00030684,2]
[425877694,1782013887000,-500.0,0.00030684,2]
[425877675,1782013887000,-500.0,0.00030684,120]
[425877676,1782013887000,-801.08,0.00030684,2]
[425877683,1782013887000,-512.29,0.00030684,2]
[425877678,1782013887000,-500.0,0.00030684,2]
[425877679,1782013887000,-500.0,0.00030684,2]
[425877681,1782013887000,-511.66,0.00030684,2]
[425877682,1782013887000,-500.0,0.00030684,2]
[425877685,1782013887000,-500.0,0.00030684,2]
[425877684,1782013887000,-500.0,0.00030684,2]
[425877690,1782013887000,-745.01,0.00030684,2]
[425877693,1782013887000,-500.0,0.00030684,2]
[425877698,1782013887000,-493.92772334,0.00030684,2]
[425877686,1782013887000,-500.0,0.00030684,2]
[425877687,1782013887000,-500.0,0.00030684,2]
[425877688,1782013887000,-500.0,0.00030684,2]
[425877692,1782013887000,-500.0,0.00030684,2]
[425877691,1782013887000,-500.0,0.00030684,2]
[425877696,1782013887000,-500.0,0.00030684,2]
[425877697,1782013887000,-1631.14,0.00030684,2]
[425877695,1782013887000,-500.0,0.00030684,2]
[425877701,1782013887000,-610.54,0.00030684,2]
[425877706,1782013887000,-5180.59,0.00030684,2]
[425877673,1782013887000,-647.43,0.00030684,2]
[425877689,1782013887000,-3065.16,0.00030684,2]
[425877680,1782013887000,-259.27572544,0.00030684,2]
[425877650,1782013887000,-500.0,0.00030684,2]
[425877674,1782013887000,-525.95,0.00030684,2]
[425877648,1782013887000,-500.0,0.00030684,2]
[425877649,1782013887000,-2114.61,0.00030684,2]
[425877651,1782013887000,-500.0,0.00030684,2]
[425877653,1782013887000,-500.0,0.00030684,2]
[425877655,1782013887000,-2375.67,0.00030684,2]
[425877654,1782013887000,-500.0,0.00030684,2]
[425877657,1782013887000,-500.0,0.00030684,2]
[425877658,1782013887000,-500.0,0.00030684,2]
[425877659,1782013887000,-500.0,0.00030684,2]
[425877652,1782013887000,-500.0,0.00030684,2]
[425877656,1782013887000,-500.0,0.00030684,2]
[425877677,1782013887000,-330.49927303,0.00030684,2]
[425877660,1782013887000,-500.0,0.00030684,2]
[425877661,1782013887000,-516.06707967,0.00030684,2]
[425877663,1782013887000,-500.0,0.00030684,2]
[425877664,1782013887000,-918.67,0.00030684,2]
[425877665,1782013887000,-500.0,0.00030684,2]
[425877669,1782013887000,-1173.97,0.00030684,2]
[425877666,1782013887000,-884.2,0.00030684,2]
[425877670,1782013887000,-1032.52,0.00030684,2]
[425877671,1782013887000,-500.0,0.00030684,2]
[425877668,1782013887000,-500.0,0.00030684,2]
[425877667,1782013887000,-500.0,0.00030684,2]
[425877672,1782013887000,-500.0,0.00030684,2]
[425877662,1782013887000,-1492.86,0.00030684,2]
[425877699,1782013887000,-500.0,0.00030684,2]
[425877702,1782013887000,-685.15,0.00030684,2]
[425877700,1782013887000,-605.84028048,0.00030684,2]
[425877739,1782013887000,-606.62,0.00030684,2]
[425877738,1782013887000,-687.66,0.00030684,2]
[425877734,1782013887000,-500.0,0.00030684,2]
[425877732,1782013887000,-500.0,0.00030684,2]
[425877735,1782013887000,-500.0,0.00030684,2]
[425877736,1782013887000,-500.0,0.00030684,2]
[425877740,1782013887000,-500.0,0.00030684,2]
[425877741,1782013887000,-500.0,0.00030684,2]
[425877742,1782013887000,-500.0,0.00030684,2]
[425877744,1782013887000,-500.0,0.00030684,2]
[425877745,1782013887000,-500.0,0.00030684,2]
[425877733,1782013887000,-522.66296884,0.00030684,2]
[425877751,1782013887000,-784.68,0.00030684,2]
[425877750,1782013887000,-289.57,0.00030684,2]
[425877743,1782013887000,-500.0,0.00030684,2]
[425877747,1782013887000,-500.0,0.00030684,2]
[425877749,1782013887000,-500.0,0.00030684,2]
[425877753,1782013887000,-500.0,0.00030684,2]
[425877752,1782013887000,-500.0,0.00030684,2]
[425877757,1782013887000,-500.0,0.00030684,2]
[425877754,1782013887000,-500.0,0.00030684,2]
[425877755,1782013887000,-743.4,0.00030684,2]
[425877756,1782013887000,-347.17249906,0.00030684,2]
[425877705,1782013887000,-500.0,0.00030684,2]
[425877746,1782013887000,-500.0,0.00030684,2]
[425877737,1782013887000,-500.0,0.00030684,2]
[425877748,1782013887000,-500.0,0.00030684,2]
[425877730,1782013887000,-500.0,0.00030684,2]
[425877703,1782013887000,-500.0,0.00030684,2]
[425877731,1782013887000,-1139.19,0.00030684,2]
[425877704,1782013887000,-500.0,0.00030684,2]
[425877707,1782013887000,-500.0,0.00030684,2]
[425877708,1782013887000,-500.0,0.00030684,2]
[425877715,1782013887000,-500.0,0.00030684,2]
[425877710,1782013887000,-2244.17,0.00030684,2]
[425877711,1782013887000,-500.0,0.00030684,2]
[425877714,1782013887000,-500.0,0.00030684,2]
[425877709,1782013887000,-527.2,0.00030684,2]
[425877713,1782013887000,-500.0,0.00030684,2]
[425877716,1782013887000,-531.91,0.00030684,2]
[425877712,1782013887000,-500.0,0.00030684,2]
[425877729,1782013887000,-500.0,0.00030684,2]
[425877718,1782013887000,-872.58,0.00030684,2]
[425877721,1782013887000,-775.47,0.00030684,2]
[425877720,1782013887000,-523.14,0.00030684,2]
[425877722,1782013887000,-500.0,0.00030684,2]
[425877728,1782013887000,-500.0,0.00030684,2]
[425877725,1782013887000,-558.37,0.00030684,2]
[425877727,1782013887000,-500.0,0.00030684,2]
[425877724,1782013887000,-308.35694151,0.00030684,2]
[425877723,1782013887000,-500.0,0.00030684,2]
[425877726,1782013887000,-500.0,0.00030684,2]
[425877719,1782013887000,-500.0,0.00030684,2]
[425877717,1782013887000,-578.89,0.00030684,2]
[425877796,1782013888000,-500.0,0.00030684,2]
[425877791,1782013888000,-500.0,0.00030684,2]
[425877793,1782013888000,-500.0,0.00030684,2]
[425877799,1782013888000,-1000.0,0.00030684,2]
[425877794,1782013888000,-592.69,0.00030684,2]
[425877795,1782013888000,-500.0,0.00030684,2]
[425877801,1782013888000,-300.0,0.00030684,2]
[425877792,1782013888000,-500.0,0.00030684,2]
[425877798,1782013888000,-616.72,0.00030684,2]
[425877802,1782013888000,-300.0,0.00030684,2]
[425877800,1782013888000,-6854.81,0.00030684,2]
[425877804,1782013888000,-500.0,0.00030684,2]
[425877797,1782013888000,-5709.41,0.00030684,2]
[425877803,1782013888000,-500.0,0.00030684,2]
[425877813,1782013888000,-500.0,0.00030684,2]
[425877816,1782013888000,-747.33,0.00030684,2]
[425877809,1782013888000,-624.26,0.00030684,2]
[425877805,1782013888000,-538.04205075,0.00030684,2]